fUSD/lending_fUSD_20250215
["ID","MTS","AMOUNT","RATE_DAILY","PERIOD"]
[353145762,1739611851082,-500.0,0.00011041,2]
[353145763,1739611851093,-500.0,0.00011041,2]
[353145764,1739611851103,-500.0,0.00011041,2]
[353145765,1739611851115,-500.0,0.00011041,2]
[353145766,1739611851127,-500.0,0.00011041,2]
[353145767,1739611851150,-500.0,0.00011041,2]
[353145768,1739611851168,-500.0,0.00011041,2]
[353145769,1739611851179,-500.0,0.00011041,2]
[353145770,1739611851191,-500.0,0.00011041,2]
[353145771,1739611851206,-500.0,0.00011041,2]
[353145772,1739611851217,-500.0,0.00011041,2]
[353145773,1739611851228,-500.0,0.00011041,2]
[353145774,1739611851241,-500.0,0.00011041,2]
[353145775,1739611851252,-500.0,0.00011041,2]
[353145776,1739611851264,-500.0,0.00011041,2]
[353145777,1739611851276,-500.0,0.00011041,2]
[353145778,1739611851287,-500.0,0.00011041,2]
[353145779,1739611851298,-500.0,0.00011041,2]
[353145780,1739611851310,-500.0,0.00011041,2]
[353145781,1739611851321,-500.0,0.00011041,2]
[353145782,1739611851333,-500.0,0.00011041,2]
[353145783,1739611851344,-500.0,0.00011041,2]
[353145784,1739611851355,-500.0,0.00011041,2]
[353145785,1739611851367,-500.0,0.00011041,2]
[353145786,1739611851379,-500.0,0.00011041,2]
[353145787,1739611851390,-500.0,0.00011041,2]
[353145788,1739611851402,-500.0,0.00011041,2]
[353145789,1739611851413,-500.0,0.00011041,2]
[353145790,1739611851424,-500.0,0.00011041,2]
[353145791,1739611851436,-500.0,0.00011041,2]
[353145792,1739611851447,-500.0,0.00011041,2]
[353145793,1739611851459,-500.0,0.00011041,2]
[353145794,1739611851470,-500.0,0.00011041,2]
[353145795,1739611851484,-661.16,0.00011041,2]
[353145796,1739611851495,-500.0,0.00011041,2]
[353145797,1739611851507,-500.0,0.00011041,2]
[353145798,1739611851519,-500.0,0.00011041,2]
[353145799,1739611851531,-500.0,0.00011041,2]
[353145800,1739611851542,-500.0,0.00011041,2]
[353145801,1739611851555,-310.00717578,0.00011041,2]
[353145802,1739611851566,-602.88,0.00011041,2]
[353145803,1739611851578,-500.0,0.00011041,2]
[353145804,1739611851593,-500.0,0.00011041,2]
[353145805,1739611851604,-500.0,0.00011041,2]
[353145806,1739611851616,-513.28683268,0.00011041,2]
[353145807,1739611851628,-500.0,0.00011041,2]
[353145808,1739611851640,-500.0,0.00011041,2]
[353145809,1739611851651,-602.21,0.00011041,2]
[353145810,1739611851663,-500.0,0.00011041,2]
[353145811,1739611851675,-500.0,0.00011041,2]
[353145812,1739611851687,-500.0,0.00011041,2]
[353145813,1739611851699,-500.0,0.00011041,2]
[353145814,1739611851710,-559.76,0.00011041,2]
[353145815,1739611851722,-500.0,0.00011041,2]
[353145816,1739611851733,-500.0,0.00011041,2]
[353145817,1739611851746,-500.0,0.00011041,2]
[353145818,1739611851758,-266.69,0.00011041,2]
[353145819,1739611851769,-500.0,0.00011041,2]
[353145820,1739611851781,-500.0,0.00011041,2]
[353145821,1739611851793,-500.0,0.00011041,2]
[353145822,1739611851804,-500.0,0.00011041,2]
[353145823,1739611851815,-500.0,0.00011041,2]
[353145824,1739611851827,-500.0,0.00011041,2]
[353145825,1739611851839,-500.0,0.00011041,2]
[353145826,1739611851850,-500.0,0.00011041,2]
[353145827,1739611851862,-500.0,0.00011041,2]
[353145828,1739611851873,-506.53681326,0.00011041,2]
[353145829,1739611851885,-500.0,0.00011041,2]
[353145830,1739611851897,-500.0,0.00011041,2]
[353145831,1739611851909,-500.0,0.00011041,2]
[353145832,1739611851920,-500.0,0.00011041,2]
[353145833,1739611851932,-500.0,0.00011041,2]
[353145834,1739611851943,-596.65,0.00011041,2]
[353145835,1739611851955,-500.0,0.00011041,2]
[353145836,1739611851967,-500.0,0.00011041,2]
[353145837,1739611851978,-500.0,0.00011041,2]
[353145838,1739611851991,-500.0,0.00011041,2]
[353145839,1739611852003,-500.0,0.00011041,2]
[353145840,1739611852014,-500.0,0.00011041,2]
[353145841,1739611852026,-500.0,0.00011041,2]
[353145842,1739611852037,-500.0,0.00011041,2]
[353145843,1739611852049,-503.89237166,0.00011041,2]
[353145844,1739611852061,-500.0,0.00011041,2]
[353145845,1739611852072,-500.0,0.00011041,2]
[353145846,1739611852083,-151.0,0.00011041,2]
[353145847,1739611852094,-151.0,0.00011041,2]
[353145848,1739611852106,-500.0,0.00011041,2]
[353145849,1739611852117,-500.0,0.00011041,2]
[353145850,1739611852128,-500.0,0.00011041,2]
[353145851,1739611852138,-500.0,0.00011041,2]
[353145852,1739611852149,-500.0,0.00011041,2]
[353145853,1739611852159,-500.0,0.00011041,2]
[353145854,1739611852170,-500.0,0.00011041,2]
[353145855,1739611852180,-500.0,0.00011041,2]
[353145856,1739611852191,-500.0,0.00011041,2]
[353145857,1739611852202,-500.0,0.00011041,2]
[353145858,1739611852212,-500.0,0.00011041,2]
[353145859,1739611852223,-500.0,0.00011041,2]
[353145860,1739611852234,-500.0,0.00011041,2]
[353145861,1739611852245,-500.0,0.00011041,2]
[353145862,1739611852257,-642.55,0.00011041,2]
[353145863,1739611852269,-500.0,0.00011041,2]
[353145864,1739611852280,-500.0,0.00011041,2]
[353145865,1739611852292,-500.0,0.00011041,2]
[353145866,1739611852302,-500.0,0.00011041,2]
[353145867,1739611852313,-500.0,0.00011041,2]
[353145868,1739611852324,-500.0,0.00011041,2]
[353145869,1739611852336,-500.0,0.00011041,2]
[353145870,1739611852348,-500.0,0.00011041,2]
[353145871,1739611852360,-500.0,0.00011041,2]
[353145872,1739611852371,-500.0,0.00011041,2]
[353145873,1739611852383,-513.47020687,0.00011041,2]
[353145874,1739611852395,-500.0,0.00011041,2]
[353145875,1739611852406,-509.2,0.00011041,2]
[353145876,1739611852417,-500.0,0.00011041,2]
[353145877,1739611852429,-603.8765397,0.00011041,2]
[353145878,1739611852441,-322.39,0.00011041,2]
[353145879,1739611852453,-583.23,0.00011041,2]
[353145880,1739611852464,-500.0,0.00011041,2]
[353145881,1739611852475,-500.0,0.00011041,2]
[353145882,1739611852487,-500.0,0.00011041,2]
[353145883,1739611852499,-296.58413976,0.00011041,2]
[353145884,1739611852509,-500.0,0.00011041,2]
[353145885,1739611852520,-500.0,0.00011041,2]
[353145886,1739611852531,-500.0,0.00011041,2]
[353145887,1739611852542,-500.0,0.00011041,2]
[353145888,1739611852553,-588.51,0.00011041,2]
[353145889,1739611852564,-500.0,0.00011041,2]
[353145890,1739611852575,-500.0,0.00011041,2]
[353145891,1739611852589,-500.0,0.00011041,2]
[353145892,1739611852600,-441.88869808,0.00011041,2]
[353145893,1739611852611,-500.0,0.00011041,2]
[353145894,1739611852622,-500.0,0.00011041,2]
[353145895,1739611852634,-500.0,0.00011041,2]
[353145896,1739611852645,-500.0,0.00011041,2]
[353145897,1739611852657,-500.0,0.00011041,2]
[353145898,1739611852669,-500.0,0.00011041,2]
[353145899,1739611852679,-500.0,0.00011041,2]
[353145900,1739611852688,-636.63,0.00011041,2]
[353145901,1739611852697,-500.0,0.00011041,2]
[353145902,1739611852706,-500.0,0.00011041,2]
[353145903,1739611852715,-500.0,0.00011041,2]
[353145904,1739611852725,-500.0,0.00011041,2]
[353145905,1739611852734,-500.0,0.00011041,2]
[353145906,1739611852744,-500.0,0.00011041,2]
[353145907,1739611852753,-666.54,0.00011041,2]
[353145908,1739611852763,-597.23,0.00011041,2]
[353145909,1739611852773,-500.0,0.00011041,2]
[353145910,1739611853116,-500.0,0.00011041,2]
[353145911,1739611853146,-500.0,0.00011041,2]
[353145912,1739611853162,-500.0,0.00011041,2]
[353145913,1739611853173,-500.0,0.00011041,2]
[353145914,1739611853182,-500.0,0.00011041,2]
[353145915,1739611853191,-553.58,0.00011041,2]
[353145916,1739611853200,-500.0,0.00011041,2]
[353145917,1739611853209,-500.0,0.00011041,2]
[353145918,1739611853218,-500.0,0.00011041,2]
[353145919,1739611853227,-500.0,0.00011041,2]
[353145920,1739611853237,-500.0,0.00011041,2]
[353145921,1739611853247,-500.0,0.00011041,2]
[353145922,1739611853257,-502.87452208,0.00011041,2]
[353145923,1739611853266,-500.0,0.00011041,2]
[353145924,1739611853275,-500.0,0.00011041,2]
[353145925,1739611853284,-500.0,0.00011041,2]
[353145926,1739611853293,-500.0,0.00011041,2]
[353145927,1739611853302,-500.0,0.00011041,2]
[353145928,1739611853312,-500.0,0.00011041,2]
[353145929,1739611853322,-500.0,0.00011041,2]
[353145930,1739611853332,-500.0,0.00011041,2]
[353145931,1739611853342,-656.03,0.00011041,2]
[353145932,1739611853351,-500.0,0.00011041,2]
[353145933,1739611853361,-500.0,0.00011041,2]
[353145934,1739611853370,-500.0,0.00011041,2]
[353145935,1739611853380,-515.04052596,0.00011041,2]
[353145936,1739611853390,-500.0,0.00011041,2]
[353145937,1739611853400,-500.0,0.00011041,2]
[353145938,1739611853410,-500.0,0.00011041,2]
[353145939,1739611853419,-500.0,0.00011041,2]
[353145940,1739611853429,-500.0,0.00011041,2]
[353145941,1739611853438,-500.0,0.00011041,2]
[353145942,1739611853447,-500.0,0.00011041,2]
[353145943,1739611853457,-569.62,0.00011041,2]
[353145944,1739611853467,-500.0,0.00011041,2]
[353145945,1739611853477,-500.0,0.00011041,2]
[353145946,1739611853487,-500.0,0.00011041,2]
[353145947,1739611853497,-500.0,0.00011041,2]
[353145948,1739611853506,-500.0,0.00011041,2]
[353145949,1739611853516,-500.0,0.00011041,2]
[353145950,1739611853525,-500.0,0.00011041,2]
[353145951,1739611853534,-500.0,0.00011041,2]
[353145952,1739611853544,-500.0,0.00011041,2]
[353145953,1739611853553,-628.27,0.00011041,2]
[353145954,1739611853562,-500.0,0.00011041,2]
[353145955,1739611853572,-500.0,0.00011041,2]
[353145956,1739611853584,-500.0,0.00011041,2]
[353145957,1739611853595,-500.0,0.00011041,2]
[353145958,1739611853604,-557.69,0.00011041,2]
[353145959,1739611853614,-619.35,0.00011041,2]
[353145960,1739611853624,-500.0,0.00011041,2]
[353145961,1739611853635,-500.0,0.00011041,2]
[353145962,1739611853644,-572.09,0.00011041,2]
[353145963,1739611853653,-682.02,0.00011041,2]
[353145964,1739611853663,-500.0,0.00011041,2]
[353145965,1739611853673,-500.0,0.00011041,2]
[353145966,1739611853682,-500.0,0.00011041,2]
[353145967,1739611853691,-500.0,0.00011041,2]
[353145968,1739611853700,-405.92,0.00011041,2]
[353145969,1739611853710,-500.0,0.00011041,2]
[353145970,1739611853719,-812.88,0.00011041,2]
[353145971,1739611853729,-500.0,0.00011041,2]
[353145972,1739611853740,-500.0,0.00011041,2]
[353145973,1739611853750,-619.66,0.00011041,2]
[353145974,1739611853759,-500.0,0.00011041,2]
[353145975,1739611853768,-500.0,0.00011041,2]
[353145976,1739611853778,-500.0,0.00011041,2]
[353145977,1739611853787,-437.04,0.00011041,2]
[353145978,1739611853796,-500.0,0.00011041,2]
[353145979,1739611853805,-672.16,0.00011041,2]
[353145980,1739611853814,-500.0,0.00011041,2]
[353145981,1739611853824,-500.0,0.00011041,2]
[353145982,1739611853833,-500.0,0.00011041,2]
[353145983,1739611853842,-500.0,0.00011041,2]
[353145984,1739611853852,-500.0,0.00011041,2]
[353145985,1739611853862,-500.0,0.00011041,2]
[353145986,1739611853871,-500.0,0.00011041,2]
[353145987,1739611853880,-500.0,0.00011041,2]
[353145988,1739611853889,-500.0,0.00011041,2]
[353145989,1739611853899,-500.0,0.00011041,2]
[353145990,1739611853908,-500.0,0.00011041,2]
[353145991,1739611853918,-500.0,0.00011041,2]
[353145992,1739611853927,-575.78,0.00011041,2]
[353145993,1739611853937,-615.98,0.00011041,2]
[353145994,1739611853947,-189.94,0.00011041,2]
[353145995,1739611853956,-510.14,0.00011041,2]
[353145996,1739611853966,-500.0,0.00011041,2]
[353145997,1739611853975,-500.0,0.00011041,2]
[353145998,1739611853984,-500.0,0.00011041,2]
[353145999,1739611853994,-547.70172576,0.00011041,2]
[353146000,1739611854003,-500.0,0.00011041,2]
[353146001,1739611854013,-500.0,0.00011041,2]
[353146002,1739611854022,-624.39,0.00011041,2]
[353146003,1739611854031,-500.0,0.00011041,2]
[353146004,1739611854040,-500.0,0.00011041,2]
[353146005,1739611854050,-500.0,0.00011041,2]
[353146006,1739611854059,-500.0,0.00011041,2]
[353146007,1739611854069,-469.16,0.00011041,2]
[353146008,1739611854078,-691.81,0.00011041,2]
[353146009,1739611854087,-500.0,0.00011041,2]
[353146010,1739611854097,-500.0,0.00011041,2]
[353146011,1739611854106,-500.0,0.00011041,2]
[353146012,1739611854116,-500.0,0.00011041,2]
[353146013,1739611854125,-500.0,0.00011041,2]
[353146014,1739611854134,-778.06,0.00011041,2]
[353146015,1739611854143,-500.0,0.00011041,2]
[353146016,1739611854152,-648.19,0.00011041,2]
[353146017,1739611854161,-500.0,0.00011041,2]
[353146018,1739611854170,-536.79,0.00011041,2]
[353146019,1739611854180,-638.9,0.00011041,2]
[353146020,1739611854189,-500.0,0.00011041,2]
[353146021,1739611854198,-1073.44,0.00011041,2]
[353146022,1739611854208,-676.69,0.00011041,2]
[353146023,1739611854217,-500.0,0.00011041,2]
[353146024,1739611854226,-568.45,0.00011041,2]
[353146025,1739611854235,-500.0,0.00011041,2]
[353146026,1739611854245,-1057.92,0.00011041,2]
[353146027,1739611854254,-500.0,0.00011041,2]
[353146028,1739611854264,-500.0,0.00011041,2]
[353146029,1739611854273,-500.0,0.00011041,2]
[353146030,1739611854282,-500.0,0.00011041,2]
[353146031,1739611854292,-1086.69,0.00011041,2]
[353146032,1739611854301,-829.19,0.00011041,2]
[353146033,1739611854310,-500.0,0.00011041,2]
[353146034,1739611854319,-793.24,0.00011041,2]
[353146035,1739611854329,-500.0,0.00011041,2]
[353146036,1739611854338,-615.24,0.00011041,2]
[353146037,1739611854347,-783.17,0.00011041,2]
[353146038,1739611854356,-500.0,0.00011041,2]
[353146039,1739611854367,-500.0,0.00011041,2]
[353146040,1739611854376,-991.47,0.00011041,2]
[353146041,1739611854386,-1433.75,0.00011041,2]
[353146042,1739611854395,-971.58,0.00011041,2]
[353146043,1739611854405,-789.55,0.00011041,2]
[353146044,1739611854414,-552.21,0.00011041,2]
[353146045,1739611854424,-500.0,0.00011041,2]
[353146046,1739611854433,-1175.04,0.00011041,2]
[353146047,1739611854442,-500.0,0.00011041,2]
[353146048,1739611854452,-500.0,0.00011041,2]
[353146049,1739611854461,-500.0,0.00011041,2]
[353146050,1739611854470,-731.56,0.00011041,2]
[353146051,1739611854479,-500.0,0.00011041,2]
[353146052,1739611854489,-2056.44,0.00011041,2]
[353146053,1739611854499,-529.5,0.00011041,2]
[353146054,1739611854508,-703.41,0.00011041,2]
[353146055,1739611854519,-500.0,0.00011041,2]
[353146056,1739611854530,-500.0,0.00011041,2]
[353146057,1739611854540,-895.05,0.00011041,2]
[353146058,1739611854550,-717.51,0.00011041,2]
[353146059,1739611854563,-610.86,0.00011041,2]
[353146060,1739611854573,-1754.36,0.00011041,2]
[353146061,1739611854587,-500.0,0.00011041,2]
[353146062,1739611854596,-743.87,0.00011041,2]
[353146063,1739611854606,-500.0,0.00011041,2]
[353146064,1739611854614,-1009.67,0.00011041,2]
[353146065,1739611854625,-2982.91,0.00011041,2]
[353146066,1739611854634,-995.96,0.00011041,2]
[353146067,1739611854643,-500.0,0.00011041,2]
[353146068,1739611854652,-1159.35,0.00011041,2]
[353146069,1739611854662,-500.0,0.00011041,2]
[353146070,1739611854673,-500.0,0.00011041,2]
[353146071,1739611854683,-581.33,0.00011041,2]
[353146072,1739611854693,-779.91,0.00011041,2]
[353146073,1739611854703,-500.0,0.00011041,2]
[353146074,1739611854712,-735.73,0.00011041,2]
[353146075,1739611854721,-594.66,0.00011041,2]
[353146076,1739611854731,-1222.91,0.00011041,2]
[353146077,1739611854740,-500.0,0.00011041,2]
[353146078,1739611854750,-500.0,0.00011041,2]
[353146079,1739611854759,-1141.54,0.00011041,2]
[353146080,1739611854769,-500.0,0.00011041,2]
[353146081,1739611854778,-657.56,0.00011041,2]
[353146082,1739611854787,-921.4,0.00011041,2]
[353146083,1739611854796,-802.93,0.00011041,2]
[353146084,1739611854805,-500.0,0.00011041,2]
[353146085,1739611854814,-560.26,0.00011041,2]
[353146086,1739611854823,-646.72,0.00011041,2]
[353146087,1739611854832,-1756.73,0.00011041,2]
[353146088,1739611854842,-2263.15,0.00011041,2]
[353146089,1739611854851,-645.55,0.00011041,2]
[353146090,1739611854860,-630.63,0.00011041,2]
[353146091,1739611854869,-433.16,0.00011041,2]
[353146092,1739611854878,-500.0,0.00011041,2]
[353146093,1739611854887,-904.92,0.00011041,2]
[353146094,1739611854896,-497.9,0.00011041,2]
[353146095,1739611854905,-864.22,0.00011041,2]
[353146096,1739611854914,-500.0,0.00011041,2]
[353146097,1739611854923,-830.74,0.00011041,2]
[353146098,1739611854933,-180.39,0.00011041,2]
[353146099,1739611854943,-769.25,0.00011041,2]
[353146100,1739611854952,-897.43,0.00011041,2]
[353146101,1739611854961,-1011.81,0.00011041,2]
[353146102,1739611854970,-500.0,0.00011041,2]
[353146103,1739611854979,-383.6,0.00011041,2]
[353146104,1739611854989,-500.0,0.00011041,2]
[353146105,1739611854999,-1292.79,0.00011041,2]
[353146106,1739611855008,-500.0,0.00011041,2]
[353146107,1739611855017,-1639.04,0.00011041,2]
[353146108,1739611855026,-500.0,0.00011041,2]
[353146109,1739611855036,-500.0,0.00011041,2]
[353146110,1739611855045,-695.46,0.00011041,2]
[353146111,1739611855054,-500.0,0.00011041,2]
[353146112,1739611855063,-500.0,0.00011041,2]
[353146113,1739611855073,-746.86,0.00011041,2]
[353146114,1739611855082,-850.54,0.00011041,2]
[353146115,1739611855091,-734.88,0.00011041,2]
[353146116,1739611855100,-500.0,0.00011041,2]
[353146117,1739611855110,-1135.06,0.00011041,2]
[353146118,1739611855119,-834.87,0.00011041,2]
[353146119,1739611855128,-500.0,0.00011041,2]
[353146120,1739611855137,-505.21,0.00011041,2]
[353146121,1739611855146,-500.0,0.00011041,2]
[353146122,1739611855156,-500.0,0.00011041,2]
[353146123,1739611855165,-622.66,0.00011041,2]
[353146124,1739611855175,-824.06,0.00011041,2]
[353146125,1739611855184,-500.0,0.00011041,2]
[353146126,1739611855194,-500.0,0.00011041,2]
[353146127,1739611855203,-500.0,0.00011041,2]
[353146128,1739611855213,-1491.64,0.00011041,2]
[353146129,1739611855223,-500.0,0.00011041,2]
[353146130,1739611855232,-587.54,0.00011041,2]
[353146131,1739611855242,-510.9,0.00011041,2]
[353146132,1739611855251,-500.0,0.00011041,2]
[353146133,1739611855261,-1098.7,0.00011041,2]
[353146134,1739611855270,-500.0,0.00011041,2]
[353146135,1739611855279,-879.19,0.00011041,2]
[353146136,1739611855289,-697.57,0.00011041,2]
[353146137,1739611855298,-845.88,0.00011041,2]
[353146138,1739611855308,-500.0,0.00011041,2]
[353146139,1739611855317,-500.0,0.00011041,2]
[353146140,1739611855326,-500.0,0.00011041,2]
[353146141,1739611855335,-927.84,0.00011041,2]
[353146142,1739611855345,-1000.0,0.00011041,2]
[353146143,1739611855354,-500.0,0.00011041,2]
[353146144,1739611855364,-500.0,0.00011041,2]
[353146145,1739611855374,-910.15,0.00011041,2]
[353146146,1739611855384,-1188.23,0.00011041,2]
[353146147,1739611855394,-500.0,0.00011041,2]
[353146148,1739611855403,-677.74,0.00011041,2]
[353146149,1739611855413,-500.0,0.00011041,2]
[353146150,1739611855423,-500.0,0.00011041,2]
[353146151,1739611855432,-500.0,0.00011041,2]
[353146152,1739611855442,-500.0,0.00011041,2]
[353146153,1739611855451,-500.0,0.00011041,2]
[353146154,1739611855461,-500.0,0.00011041,2]
[353146155,1739611855470,-1676.44,0.00011041,2]
[353146156,1739611855480,-500.0,0.00011041,2]
[353146157,1739611855491,-964.59,0.00011041,2]
[353146158,1739611855500,-1174.04,0.00011041,2]
[353146159,1739611855510,-500.0,0.00011041,2]
[353146160,1739611855520,-500.0,0.00011041,2]
[353146161,1739611855529,-500.0,0.00011041,2]
[353146162,1739611855539,-500.0,0.00011041,2]
[353146163,1739611855548,-500.0,0.00011041,2]
[353146164,1739611855558,-728.47,0.00011041,2]
[353146165,1739611855568,-703.23,0.00011041,2]
[353146166,1739611855578,-592.58,0.00011041,2]
[353146167,1739611855592,-500.0,0.00011041,2]
[353146168,1739611855602,-500.0,0.00011041,2]
[353146169,1739611855611,-1086.08,0.00011041,2]
[353146170,1739611855622,-500.0,0.00011041,2]
[353146171,1739611855632,-500.0,0.00011041,2]
[353146172,1739611855642,-500.0,0.00011041,2]
[353146173,1739611855651,-500.0,0.00011041,2]
[353146174,1739611855662,-500.0,0.00011041,2]
[353146175,1739611855673,-748.0,0.00011041,2]
[353146176,1739611855682,-957.02,0.00011041,2]
[353146177,1739611855692,-1604.66,0.00011041,2]
[353146178,1739611855703,-500.0,0.00011041,2]
[353146179,1739611855712,-704.0,0.00011041,2]
[353146180,1739611855722,-623.33,0.00011041,2]
[353146181,1739611855731,-500.0,0.00011041,2]
[353146182,1739611855743,-546.84,0.00011041,2]
[353146183,1739611855754,-2157.01,0.00011041,2]
[353146184,1739611855764,-1000.0,0.00011043,2]
[353146185,1739611855773,-200.0,0.00011068,2]
[353146186,1739611855783,-280.0,0.0001107,2]
[353146187,1739611855793,-150.0,0.00011075,2]
[353146188,1739611855802,-150.0,0.00011088,2]
[353146189,1739611855811,-300.0,0.00011097,2]
[353146190,1739611855821,-500.0,0.00011098,2]
[353146191,1739611855831,-500.0,0.00011098,2]
[353146192,1739611855841,-508.82943676,0.00011098,2]
[353146193,1739611855851,-872.98,0.00011098,2]
[353146194,1739611855861,-872.98,0.00011098,2]
[353146195,1739611855871,-1506.85,0.00011098,2]
[353146196,1739611855881,-1506.85,0.00011098,2]
[353146197,1739611855892,-30151.48224867,0.00011099,2]
[353146198,1739611855901,-30151.48224858,0.00011099,2]
[353146199,1739611855911,-31977.69060729,0.00011099,2]
[353146200,1739611855920,-31977.69060721,0.00011099,2]
[353146201,1739611855930,-31977.69060721,0.00011099,2]
[353146202,1739611855940,-31977.69060721,0.00011099,2]
[353146203,1739611855950,-31977.69060721,0.00011099,2]
[353146204,1739611855960,-151.0,0.00011099,2]
[353146205,1739611855969,-151.0,0.00011099,2]
[353146206,1739611855979,-262.169109,0.00011099,2]
[353146207,1739611855989,-2082.15,0.00011122,2]
[353146208,1739611855999,-1356.16,0.00011122,2]
[353146209,1739611856009,-500.0,0.00011122,2]
[353146210,1739611856019,-872.98,0.00011122,2]
[353146211,1739611856028,-725.47,0.00011122,2]
[353146212,1739611856038,-1506.85,0.00011122,2]
[353146213,1739611856048,-533.638194,0.00011123,2]
[353146214,1739611856057,-569.681091,0.00011123,2]
[353146215,1739611856067,-500.0,0.00011123,2]
[353146216,1739611856077,-598.43,0.00011123,2]
[353146217,1739611856087,-500.0,0.00011123,2]
[353146218,1739611856097,-500.0,0.00011123,2]
[353146219,1739611856107,-461.7310142,0.00011123,2]
[353146220,1739611856117,-500.0,0.00011123,2]
[353146221,1739611856128,-500.0,0.00011123,2]
[353146222,1739611856137,-494.29,0.00011123,2]
[353146223,1739611856147,-500.0,0.00011123,2]
[353146224,1739611856157,-500.0,0.00011123,2]
[353146225,1739611856167,-500.0,0.00011123,2]
[353146226,1739611856177,-500.0,0.00011123,2]
[353146227,1739611856358,-500.0,0.00011123,2]
[353146228,1739611856368,-500.0,0.00011123,2]
[353146229,1739611856378,-500.0,0.00011123,2]
[353146230,1739611856388,-500.0,0.00011123,2]
[353146231,1739611856398,-500.0,0.00011123,2]
[353146232,1739611856407,-500.0,0.00011123,2]
[353146233,1739611856417,-500.0,0.00011123,2]
[353146234,1739611856426,-500.0,0.00011123,2]
[353146235,1739611856436,-500.0,0.00011123,2]
[353146236,1739611856446,-500.0,0.00011123,2]
[353146237,1739611856455,-522.67,0.00011123,2]
[353146238,1739611856465,-500.0,0.00011123,2]
[353146239,1739611856475,-500.0,0.00011123,2]
[353146240,1739611856485,-500.0,0.00011123,2]
[353146241,1739611856495,-500.0,0.00011123,2]
[353146242,1739611856504,-500.0,0.00011123,2]
[353146243,1739611856514,-500.0,0.00011123,2]
[353146244,1739611856523,-500.0,0.00011123,2]
[353146245,1739611856532,-500.0,0.00011123,2]
[353146246,1739611856542,-500.0,0.00011123,2]
[353146247,1739611856552,-500.0,0.00011123,2]
[353146248,1739611856562,-500.0,0.00011123,2]
[353146249,1739611856571,-500.0,0.00011123,2]
[353146250,1739611856583,-500.0,0.00011123,2]
[353146251,1739611856594,-254.8,0.00011123,2]
[353146252,1739611856603,-500.0,0.00011123,2]
[353146253,1739611856613,-500.0,0.00011123,2]
[353146254,1739611856623,-210.88,0.00011123,2]
[353146255,1739611856634,-500.0,0.00011123,2]
[353146256,1739611856644,-386.95729399,0.00011123,2]
[353146257,1739611856654,-509.05304653,0.00011123,2]
[353146258,1739611856666,-600.6782843,0.00011123,2]
[353146259,1739611856675,-500.0,0.00011123,2]
[353146260,1739611856684,-500.0,0.00011123,2]
[353146261,1739611856693,-340.66543236,0.00011123,2]